bitfinex-derivatives/quotes_BNBF0:USTF0_20250708
["timestamp","ask_amount","ask_price","bid_price","bid_amount"]
[1751934418646,1.04564798,662.6,661.72,2.23691593]
[1751934418850,1.04564798,662.59,661.72,2.23691593]
[1751934419149,1.04564798,662.58,661.72,2.23691593]
[1751934419451,1.04564798,662.57,661.74,2.23691593]
[1751934419647,1.04564798,662.67,661.74,2.23691593]
[1751934419851,1.04564798,662.66,661.75,2.23691593]
[1751934420051,1.04564798,662.65,661.75,2.23691593]
[1751934420248,1.04564798,662.64,661.77,2.23691593]
[1751934420452,1.04564798,662.63,661.8,2.23691593]
[1751934420753,1.04564798,662.62,661.8,2.23691593]
[1751934420949,1.04564798,662.61,661.81,2.23691593]
[1751934421154,1.04564798,662.71,661.81,2.23691593]
[1751934421452,1.04564798,662.7,661.81,2.23691593]
[1751934421653,1.04564798,662.69,661.81,2.23691593]
[1751934421853,1.04564798,662.68,661.81,2.23691593]
[1751934422153,1.04564798,662.67,661.88,2.23691593]
[1751934422353,1.04564798,662.66,661.89,2.23691593]
[1751934422654,1.04564798,662.65,661.89,2.23691593]
[1751934422850,1.04806107,662.72,661.89,2.23691593]
[1751934423151,1.04806099,662.71,661.89,2.23691593]
[1751934423456,1.04806099,662.7,661.91,2.23691593]
[1751934423755,1.04806099,662.69,661.88,2.23691593]
[1751934423955,1.04806099,662.68,661.84,2.23691593]
[1751934424150,1.04806099,662.67,661.84,2.23691593]
[1751934424353,1.04806099,662.66,661.85,2.23691593]
[1751934424555,1.04806099,662.71,661.85,2.23691593]
[1751934424855,1.04860257,662.7,661.85,2.23691593]
[1751934425052,1.04860257,662.69,661.85,2.23691593]
[1751934425256,1.04860257,662.68,661.85,2.23691593]
[1751934425457,1.04882087,662.67,661.86,2.23691593]
[1751934425650,1.04882087,662.71,661.86,2.23691593]
[1751934425855,1.04882087,662.7,661.86,2.23691593]
[1751934426156,1.04882087,662.69,661.86,2.23691593]
[1751934426451,1.04882087,662.71,661.87,2.23691593]
[1751934426654,1.04882087,662.7,661.87,2.23691593]
[1751934426852,1.04882087,662.69,661.86,2.23691593]
[1751934427051,1.04882087,662.68,661.87,2.23691593]
[1751934427252,1.04882087,662.71,661.87,2.23691593]
[1751934427456,1.04882087,662.7,661.88,2.23691593]
[1751934427756,1.04882087,662.69,661.88,2.23691593]
[1751934427955,1.0493631,662.68,661.88,2.23691593]
[1751934428156,1.0493631,662.71,661.87,2.23691593]
[1751934428357,1.0493631,662.7,661.88,2.23691593]
[1751934428657,1.0493631,662.69,661.88,2.23691593]
[1751934428856,1.0493631,662.68,661.88,2.23691593]
[1751934429154,1.04970853,662.67,661.88,2.23691593]
[1751934429452,1.04970853,662.66,661.89,2.23691593]
[1751934429653,2.50844344,662.65,661.71,3.3550517]
[1751934429857,1.45873491,662.64,661.69,0.26272876]
[1751934430054,1.45873491,662.63,661.69,0.26272876]
[1751934430255,1.45873491,662.62,661.69,0.26272876]
[1751934430453,1.45873491,662.61,661.69,0.26272876]
[1751934430653,1.45873491,662.6,661.69,0.26272876]
[1751934430857,1.45873491,662.59,661.69,0.26272876]
[1751934431056,1.45873491,662.58,661.69,0.26272876]
[1751934431253,1.45873491,662.57,661.69,0.26272876]
[1751934431457,1.45873491,662.56,661.69,0.26272876]
[1751934431652,1.45873491,662.55,661.69,0.26272876]
[1751934431856,1.45873491,662.54,661.69,0.26272876]
[1751934432058,1.45873491,662.53,661.69,0.26272876]
[1751934432257,1.45873491,662.52,661.69,0.26272876]
[1751934432454,1.45873491,662.51,661.69,0.26272876]
[1751934432658,1.45873491,662.5,661.69,0.26272876]
[1751934432856,1.45873491,662.49,661.69,0.26272876]
[1751934433055,1.45873491,662.48,661.69,0.26272876]
[1751934433356,1.45873491,662.47,661.69,0.26272876]
[1751934433659,1.45873491,662.46,661.69,0.26272876]
[1751934433861,1.45873491,662.45,661.69,0.26272876]
[1751934434157,1.45873491,662.44,661.69,0.26272876]
[1751934434360,1.45873491,662.43,661.69,0.26272876]
[1751934434561,1.45873491,662.42,661.69,0.26272876]
[1751934434758,1.45873491,662.69,661.69,0.26272876]
[1751934435057,1.45873491,662.68,661.69,0.26272876]
[1751934435258,1.45873491,662.67,661.69,0.26272876]
[1751934435460,1.45873491,662.66,661.69,0.26272876]
[1751934435760,1.45873491,662.65,661.69,0.26272876]
[1751934435955,1.45873491,662.64,661.69,0.26272876]
[1751934436160,1.45873491,662.63,661.69,0.26272876]
[1751934436357,1.45873491,662.62,661.69,0.26272876]
[1751934436557,1.45873491,662.61,661.69,0.26272876]
[1751934436759,1.45873491,662.6,661.69,0.26272876]
[1751934436958,1.45873491,662.59,661.69,0.26272876]
[1751934437162,1.45873491,662.58,661.69,0.26272876]
[1751934437358,1.45873491,662.57,661.69,0.26272876]
[1751934437560,1.45873491,662.56,661.69,0.26272876]
[1751934437758,1.45873491,662.55,661.69,0.26272876]
[1751934438059,1.45873491,662.54,661.69,0.26272876]
[1751934438361,1.45873491,662.53,661.69,0.26272876]
[1751934438561,1.45873491,662.52,661.69,0.26272876]
[1751934438761,1.45873491,662.51,661.69,0.26272876]
[1751934439061,1.45873491,662.5,661.69,0.26272876]
[1751934439261,1.45873491,662.49,661.69,0.26272876]
[1751934439457,1.45873491,662.48,661.69,0.26272876]
[1751934439760,1.45873491,662.47,661.69,0.26272876]
[1751934439956,1.45873491,662.46,661.69,0.26272876]
[1751934440157,1.45873491,662.45,661.69,0.26272876]
[1751934440360,1.45873491,662.44,661.69,0.26272876]
[1751934440559,1.45873491,662.43,661.69,0.26272876]
[1751934440757,1.45873491,662.42,661.69,0.26272876]
[1751934440958,1.46060031,662.41,661.69,0.26272876]
[1751934441261,1.46060031,662.4,661.69,0.26272876]
[1751934441458,1.46060031,662.39,661.69,0.26272876]
[1751934441659,1.46060031,662.38,661.69,0.26272876]
[1751934441857,1.46060031,662.37,661.69,0.26272876]
[1751934442061,1.46060031,662.36,661.69,0.26272876]
[1751934442262,2.51867112,662.66,661.69,0.26272876]
[1751934442459,2.51867112,662.65,661.69,0.26272876]
[1751934442759,2.51867112,662.64,661.69,0.26272876]
[1751934442961,1.46060031,662.63,661.69,0.26272876]
[1751934443161,1.46060031,662.62,661.69,0.26272876]
[1751934443364,1.46060031,662.61,661.69,0.26272876]
[1751934443565,1.46060031,662.6,661.69,0.26272876]
[1751934443764,1.46060031,662.59,661.69,0.26272876]
[1751934443964,1.46060031,662.58,661.69,0.26272876]
[1751934444162,1.46060031,662.57,661.69,0.26272876]
[1751934444366,1.46060031,662.56,661.69,0.26272876]
[1751934444562,1.46060031,662.55,661.69,0.26272876]
[1751934444765,1.46060031,662.54,661.69,0.26272876]
[1751934445065,1.46060031,662.53,661.69,0.26272876]
[1751934445363,1.46060031,662.52,661.71,3.3550517]
[1751934445561,1.46060031,662.51,661.71,3.3550517]
[1751934445761,1.46060031,662.5,661.71,3.3550517]
[1751934445964,0.48575825,662.65,661.71,3.3550517]
[1751934445965,1.46060031,662.49,661.71,3.3550517]
[1751934446162,1.46060031,662.48,661.71,3.3550517]
[1751934446362,1.46060031,662.47,661.71,3.3550517]
[1751934446565,1.46060031,662.46,661.71,3.3550517]
[1751934446762,1.46060031,662.45,661.71,3.3550517]
[1751934446965,1.46060031,662.44,661.71,3.3550517]
[1751934447164,1.46060031,662.43,661.71,3.3550517]
[1751934447363,1.46060031,662.59,661.71,3.3550517]
[1751934447562,1.46060031,662.58,661.71,3.3550517]
[1751934447768,1.46060031,662.57,661.71,3.3550517]
[1751934447963,1.46060031,662.56,661.71,3.3550517]
[1751934448162,1.46060031,662.55,661.71,3.3550517]
[1751934448364,1.46060031,662.54,661.71,3.3550517]
[1751934448663,1.46060031,662.53,661.8,3.3550517]
[1751934448863,1.46060031,662.52,661.8,3.3550517]
[1751934449063,1.46060031,662.51,661.83,3.3550517]
[1751934449261,1.46060031,662.5,661.83,3.3550517]
[1751934449566,1.46060031,662.49,661.83,3.3550517]
[1751934449763,1.46060031,662.48,661.83,3.3550517]
[1751934449962,1.46060031,662.47,661.83,3.3550517]
[1751934450165,2.51855149,662.56,661.83,3.3550517]
[1751934450363,1.46060031,662.55,661.83,3.3550517]
[1751934450568,1.46060031,662.54,661.84,5.4020517]
[1751934450769,1.46060031,662.53,661.84,2.047]
[1751934450968,1.46060031,662.52,661.84,2.047]
[1751934451169,1.46060031,662.51,661.84,2.047]
[1751934451371,1.46060031,662.5,661.84,2.047]
[1751934451569,1.46060031,662.49,661.84,2.047]
[1751934451765,1.46060031,662.48,661.84,2.047]
[1751934451966,1.46060031,662.47,661.84,2.047]
[1751934452269,2.51855149,662.58,661.87,3.3550517]
[1751934452468,2.51855149,662.57,661.87,3.3550517]
[1751934452669,2.51855149,662.56,661.87,3.3550517]
[1751934452868,2.51855149,662.55,661.87,3.3550517]
[1751934453066,1.46060031,662.54,661.87,3.3550517]
[1751934453370,1.46060031,662.53,661.87,3.3550517]
[1751934453572,1.46060031,662.52,661.87,3.3550517]
[1751934453769,1.46060031,662.51,661.87,3.3550517]
[1751934453972,1.05795118,662.57,661.87,3.3550517]
[1751934453973,1.46060031,662.5,661.87,3.3550517]
[1751934454274,1.46060031,662.49,661.88,3.3550517]
[1751934454471,1.46060031,662.48,661.86,3.3550517]
[1751934454672,3.81091445,662.56,661.86,3.3550517]
[1751934454874,3.81091445,662.55,661.86,3.3550517]
[1751934455068,3.81091445,662.54,661.86,3.3550517]
[1751934455368,2.51855149,662.53,661.86,3.3550517]
[1751934455572,1.46060031,662.52,661.86,3.3550517]
[1751934455768,1.46060031,662.51,661.86,3.3550517]
[1751934455973,1.29228434,662.61,661.86,3.3550517]
[1751934455974,1.46060031,662.5,661.86,3.3550517]
[1751934456267,1.46060031,662.49,661.86,3.3550517]
[1751934456469,1.46060031,662.48,661.86,3.3550517]
[1751934456675,1.46060031,662.47,661.86,3.3550517]
[1751934456874,2.5186317,662.55,661.86,3.3550517]
[1751934457169,2.5186317,662.54,661.88,3.3550517]
[1751934457371,1.46060031,662.53,661.88,3.3550517]
[1751934457570,1.46060031,662.52,661.88,3.3550517]
[1751934457771,1.46060031,662.51,661.88,3.3550517]
[1751934457976,1.46060031,662.5,661.88,3.3550517]
[1751934458175,1.46060031,662.49,661.88,3.3550517]
[1751934458475,1.46060031,662.48,661.89,3.3550517]
[1751934458775,1.46060031,662.54,661.89,3.3550517]
[1751934458977,1.46060031,662.53,661.89,3.3550517]
[1751934459174,1.46060031,662.52,661.89,3.3550517]
[1751934459379,1.46060031,662.51,661.89,3.3550517]
[1751934459579,0.485754,662.6,661.89,3.3550517]
[1751934459580,1.46060031,662.5,661.89,3.3550517]
[1751934459880,1.46060031,662.49,661.89,3.3550517]
[1751934460080,1.46060031,662.48,661.89,3.3550517]
[1751934460275,1.46060031,662.59,661.89,3.3550517]
[1751934460576,1.46060031,662.58,661.89,3.3550517]
[1751934460775,1.46060031,662.57,661.9,3.3550517]
[1751934460978,1.46060031,662.56,661.9,3.3550517]
[1751934461180,1.46060031,662.55,661.9,3.3550517]
[1751934461378,1.46060031,662.54,661.9,3.3550517]
[1751934461580,1.46060031,662.53,661.9,3.3550517]
[1751934461781,1.46060031,662.52,661.9,3.3550517]
[1751934461979,1.46060031,662.51,661.9,3.3550517]
[1751934462184,1.46060031,662.5,661.9,3.3550517]
[1751934462381,1.46060031,662.49,661.9,3.3550517]
[1751934462580,1.46060031,662.48,661.9,3.3550517]
[1751934462785,1.46060031,662.47,661.86,3.3550517]
[1751934463080,1.46060031,662.46,661.88,3.3550517]
[1751934463281,1.46060031,662.6,661.88,3.3550517]
[1751934463484,1.46060031,662.59,661.88,3.3550517]
[1751934463784,1.46060031,662.58,661.88,3.3550517]
[1751934463985,1.46060031,662.57,661.84,2.047]
[1751934464285,1.46060031,662.56,661.84,2.047]
[1751934464480,1.69416331,662.63,661.84,2.047]
[1751934464481,1.46060031,662.55,661.84,2.047]
[1751934464678,1.46060031,662.54,661.84,2.047]
[1751934464884,2.51893639,662.53,661.84,2.047]
[1751934465082,2.51893639,662.52,661.84,2.047]
[1751934465285,2.51893639,662.51,661.84,2.047]
[1751934465485,1.46060031,662.5,661.84,2.047]
[1751934465685,1.46060031,662.49,661.84,2.047]
[1751934465885,1.46060031,662.48,661.84,2.047]
[1751934466180,1.46060031,662.47,661.84,2.047]
[1751934466382,1.46060031,662.46,661.84,2.047]
[1751934466586,1.46060031,662.45,661.84,2.047]
[1751934466881,1.05833608,662.52,661.84,2.047]
[1751934466882,1.46060031,662.44,661.84,2.047]
[1751934467084,1.46060031,662.43,661.84,2.047]
[1751934467282,1.46060031,662.42,661.84,2.047]
[1751934467582,1.46060031,662.41,661.84,2.047]
[1751934467785,1.46060031,662.4,661.84,2.047]
[1751934467984,1.46060031,662.39,661.84,2.047]
[1751934468186,1.46060031,662.38,661.84,2.047]
[1751934468383,1.46060031,662.37,661.84,2.047]
[1751934468584,2.51893639,662.5,661.84,2.047]
[1751934468784,1.46060031,662.49,661.84,2.047]
[1751934468987,1.46060031,662.48,661.84,2.047]
[1751934469184,1.46060031,662.47,661.84,2.047]
[1751934469485,1.46060031,662.46,661.84,2.047]
[1751934469788,1.46060031,662.45,661.84,2.047]
[1751934469985,1.46060031,662.44,661.84,2.047]
[1751934470186,1.05833608,662.49,661.84,2.047]
[1751934470187,1.46060031,662.43,661.84,2.047]
[1751934470388,1.46060031,662.42,661.84,2.047]
[1751934470586,1.46060031,662.41,661.84,2.047]
[1751934470889,1.46060031,662.4,661.84,2.047]
[1751934471089,1.46060031,662.39,661.84,2.047]
[1751934471288,2.98592589,662.57,661.84,2.047]
[1751934471289,1.46060031,662.38,661.84,2.047]
[1751934471590,1.46060031,662.37,661.84,2.047]
[1751934471788,1.46060031,662.36,661.84,2.047]
[1751934471991,2.51893639,662.48,661.84,2.047]
[1751934472188,2.51893639,662.47,661.84,2.047]
[1751934472387,1.46060031,662.46,661.84,2.047]
[1751934472686,1.46060031,662.45,661.84,2.047]
[1751934472885,1.46060031,662.44,661.84,2.047]
[1751934473089,1.46060031,662.43,661.84,2.047]
[1751934473289,1.46060031,662.42,661.84,2.047]
[1751934473487,1.46060031,662.41,661.84,2.047]
[1751934473686,1.46060031,662.4,661.84,2.047]
[1751934473891,1.46060031,662.39,661.88,3.3550517]
[1751934474089,2.52008911,662.52,661.9,3.3550517]
[1751934474285,2.52008911,662.51,661.9,3.3550517]
[1751934474489,2.52008911,662.5,661.91,3.3550517]
[1751934474688,2.52008911,662.49,661.91,3.3550517]
[1751934474887,2.52008911,662.48,661.91,3.3550517]
[1751934475191,2.52008911,662.47,661.91,3.3550517]
[1751934475391,2.52008911,662.46,661.9,3.3550517]
[1751934475593,2.52008911,662.45,661.9,3.3550517]
[1751934475789,2.52008911,662.44,661.9,3.3550517]
[1751934475992,2.52008911,662.43,661.9,3.3550517]
[1751934476189,1.46060031,662.42,661.9,3.3550517]
[1751934476392,1.46060031,662.41,661.9,3.3550517]
[1751934476589,1.46060031,662.4,661.9,3.3550517]
[1751934476892,1.46060031,662.39,661.9,3.3550517]
[1751934477192,1.46060031,662.38,661.9,3.3550517]
[1751934477391,1.0594888,662.48,661.84,2.047]
[1751934477392,1.46060031,662.37,661.91,3.3550517]
[1751934477590,1.46060031,662.36,661.91,3.3550517]
[1751934477792,1.46060031,662.35,661.91,3.3550517]
[1751934477994,2.52008911,662.44,661.91,3.3550517]
[1751934478289,2.52008911,662.43,661.91,3.3550517]
[1751934478593,2.52008911,662.42,661.91,3.3550517]
[1751934478791,2.52008911,662.41,661.91,3.3550517]
[1751934478991,2.52008911,662.4,661.91,3.3550517]
[1751934479195,1.46060031,662.39,661.91,3.3550517]
[1751934479395,1.46060031,662.38,661.91,3.3550517]
[1751934479594,1.46060031,662.37,661.92,3.3550517]
[1751934479795,1.46060031,662.36,661.92,3.3550517]
[1751934480092,1.46060031,662.35,661.92,3.3550517]
[1751934480391,1.46060031,662.34,661.92,3.3550517]
[1751934480695,2.52008911,662.44,661.92,3.3550517]
[1751934480895,2.52008911,662.44,661.84,2.047]
[1751934480896,2.52008911,662.43,661.9,3.3550517]
[1751934481092,2.52008911,662.42,661.9,3.3550517]
[1751934481291,2.52008911,662.41,661.9,3.3550517]
[1751934481490,1.69416331,662.53,661.9,3.3550517]
[1751934481491,2.52008911,662.4,661.9,3.3550517]
[1751934481690,1.46060031,662.39,661.9,3.3550517]
[1751934481890,1.46060031,662.38,661.9,3.3550517]
[1751934482092,1.46060031,662.37,661.9,3.3550517]
[1751934482293,1.46060031,662.36,661.9,3.3550517]
[1751934482492,1.46060031,662.35,661.9,3.3550517]
[1751934482693,1.46060031,662.34,661.9,3.3550517]
[1751934482894,1.46060031,662.33,661.9,3.3550517]
[1751934483091,2.52008911,662.4,661.9,3.3550517]
[1751934483296,1.46060031,662.39,661.89,3.3550517]
[1751934483496,1.46060031,662.38,661.9,3.3550517]
[1751934483694,1.46060031,662.37,661.9,3.3550517]
[1751934483894,1.46060031,662.36,661.9,3.3550517]
[1751934484095,1.46060031,662.35,661.9,3.3550517]
[1751934484293,1.46060031,662.34,661.9,3.3550517]
[1751934484493,1.46060031,662.33,661.9,3.3550517]
[1751934484697,2.52008911,662.44,661.9,3.3550517]
[1751934484895,2.52008911,662.43,661.9,3.3550517]
[1751934485094,2.52008911,662.42,661.9,3.3550517]
[1751934485398,1.29313324,662.52,661.84,2.047]
[1751934485399,2.52008911,662.41,661.91,3.3550517]
[1751934485599,2.52008911,662.4,661.91,3.3550517]
[1751934485796,2.52008911,662.39,661.91,3.3550517]
[1751934485995,1.46060031,662.38,661.91,3.3550517]
[1751934486200,1.46060031,662.37,661.91,3.3550517]
[1751934486400,1.46060031,662.36,661.91,3.3550517]
[1751934486701,1.46060031,662.35,661.91,3.3550517]
[1751934486901,1.46060031,662.34,661.91,3.3550517]
[1751934487102,1.46060031,662.33,661.91,3.3550517]
[1751934487401,2.52008911,662.44,661.91,3.3550517]
[1751934487601,2.52008911,662.43,661.91,3.3550517]
[1751934487799,2.52008911,662.42,661.91,3.3550517]
[1751934488000,2.52008911,662.41,661.91,3.3550517]
[1751934488304,2.52008911,662.4,661.91,3.3550517]
[1751934488599,2.52008911,662.39,661.91,3.3550517]
[1751934488798,1.46060031,662.38,661.91,3.3550517]
[1751934489000,1.46060031,662.37,661.91,3.3550517]
[1751934489205,1.46060031,662.36,661.91,3.3550517]
[1751934489405,1.46060031,662.35,661.91,3.3550517]
[1751934489701,1.46060031,662.34,661.91,3.3550517]
[1751934489901,1.46060031,662.33,661.91,3.3550517]
[1751934490105,2.52008911,662.44,661.91,3.3550517]
[1751934490305,2.52008911,662.43,661.91,3.3550517]
[1751934490504,2.52008911,662.42,661.91,3.3550517]
[1751934490705,2.52008911,662.41,661.91,3.3550517]
[1751934491003,2.52008911,662.4,661.93,3.3550517]
[1751934491202,2.52008911,662.39,661.93,3.3550517]
[1751934491405,1.29322249,662.51,661.93,3.3550517]
[1751934491406,1.46060031,662.38,661.93,3.3550517]
[1751934491707,1.46060031,662.37,661.93,3.3550517]
[1751934491903,1.46060031,662.36,661.93,3.3550517]
[1751934492107,1.46060031,662.35,661.93,3.3550517]
[1751934492407,1.46060031,662.34,661.93,3.3550517]
[1751934492608,2.52008911,662.45,661.93,3.3550517]
[1751934492907,2.52008911,662.44,661.89,3.3550517]
[1751934493107,2.52008911,662.43,661.9,3.3550517]
[1751934493307,2.52008911,662.42,661.9,3.3550517]
[1751934493508,2.52008911,662.41,661.89,3.3550517]
[1751934493804,2.52008911,662.4,661.89,3.3550517]
[1751934494005,1.46060031,662.39,661.89,3.3550517]
[1751934494308,1.46060031,662.38,661.89,3.3550517]
[1751934494505,1.46060031,662.37,661.89,3.3550517]
[1751934494710,1.46060031,662.36,661.89,3.3550517]
[1751934494909,1.46060031,662.35,661.89,3.3550517]
[1751934495110,1.46060031,662.34,661.89,3.3550517]
[1751934495310,1.46060031,662.33,661.89,3.3550517]
[1751934495609,1.46060031,662.32,661.89,3.3550517]
[1751934495809,3.81335975,662.46,661.89,3.3550517]
[1751934496007,2.52008911,662.45,661.89,3.3550517]
[1751934496206,2.52008911,662.44,661.89,3.3550517]
[1751934496406,2.52008911,662.43,661.89,3.3550517]
[1751934496611,2.52008911,662.42,661.89,3.3550517]
[1751934496811,2.52008911,662.41,661.89,3.3550517]
[1751934497013,2.52008911,662.4,661.89,3.3550517]
[1751934497305,1.46060031,662.39,661.88,3.3550517]
[1751934497510,1.46060031,662.38,661.88,3.3550517]
[1751934497704,1.46060031,662.37,661.88,3.3550517]
[1751934497909,1.46060031,662.36,661.88,3.3550517]
[1751934498110,1.46060031,662.35,661.88,3.3550517]
[1751934498310,1.46060031,662.34,661.88,3.3550517]
[1751934498608,1.46060031,662.33,661.88,3.3550517]
[1751934498808,1.46060031,662.32,661.88,3.3550517]
[1751934499011,2.52008911,662.43,661.88,3.3550517]
[1751934499211,2.52008911,662.42,661.87,3.3550517]
[1751934499408,2.52008911,662.41,661.88,3.3550517]
[1751934499708,2.52008911,662.4,661.88,3.3550517]
[1751934499907,1.46060031,662.39,661.88,3.3550517]
[1751934500110,1.46060031,662.38,661.89,3.3550517]
[1751934500306,1.46060031,662.37,661.89,3.3550517]
[1751934500509,1.46060031,662.36,661.89,3.3550517]
[1751934500810,1.46060031,662.35,661.93,3.3550517]
[1751934501115,1.46060031,662.34,661.93,3.3550517]
[1751934501312,1.46060031,662.33,661.93,3.3550517]
[1751934501612,2.52008911,662.44,661.93,3.3550517]
[1751934501808,2.52008911,662.43,661.93,3.3550517]
[1751934502013,2.52008911,662.42,661.93,3.3550517]
[1751934502308,2.52008911,662.41,661.93,3.3550517]
[1751934502512,1.46060031,662.4,661.92,3.3550517]
[1751934502712,1.46060031,662.39,661.92,3.3550517]
[1751934503008,1.46060031,662.38,661.92,3.3550517]
[1751934503309,1.46060031,662.37,661.92,3.3550517]
[1751934503511,1.46060031,662.36,661.92,3.3550517]
[1751934503709,1.46060031,662.35,661.92,3.3550517]
[1751934503910,1.46060031,662.34,661.92,3.3550517]
[1751934504109,1.46060031,662.33,661.92,3.3550517]
[1751934504313,1.46060031,662.5,661.92,3.3550517]
[1751934504508,1.46060031,662.49,661.92,3.3550517]
[1751934504712,1.46060031,662.48,661.92,3.3550517]
[1751934504911,1.46060031,662.47,661.92,3.3550517]
[1751934505113,1.46060031,662.46,661.87,3.3550517]
[1751934505315,2.52117835,662.45,661.87,3.3550517]
[1751934505513,2.52117835,662.44,661.87,3.3550517]
[1751934505814,2.52117835,662.43,661.87,3.3550517]
[1751934506015,2.52117835,662.42,661.87,3.3550517]
[1751934506211,2.52117835,662.41,661.87,3.3550517]
[1751934506410,2.52117835,662.4,661.87,3.3550517]
[1751934506710,2.52117835,662.39,661.87,3.3550517]
[1751934506910,1.29335843,662.52,661.87,3.3550517]
[1751934506911,1.46060031,662.38,661.87,3.3550517]
[1751934507116,1.46060031,662.37,661.87,3.3550517]
[1751934507316,1.46060031,662.36,661.88,3.3550517]
[1751934507516,1.46060031,662.35,661.88,3.3550517]
[1751934507712,1.46060031,662.34,661.89,3.3550517]
[1751934507914,1.46060031,662.33,661.89,3.3550517]
[1751934508114,1.46060031,662.32,661.89,3.3550517]
[1751934508413,1.46060031,662.31,661.88,3.3550517]
[1751934508614,2.52117835,662.43,661.88,3.3550517]
[1751934508814,2.52117835,662.42,661.89,3.3550517]
[1751934509019,2.52117835,662.41,661.89,3.3550517]
[1751934509217,2.52117835,662.4,661.89,3.3550517]
[1751934509519,2.52117835,662.39,661.89,3.3550517]
[1751934509712,2.52249528,662.38,661.89,3.3550517]
[1751934509913,1.46060031,662.37,661.89,3.3550517]
[1751934510114,1.46060031,662.36,661.89,3.3550517]
[1751934510318,1.46060031,662.35,661.89,3.3550517]
[1751934510519,1.46060031,662.34,661.89,3.3550517]
[1751934510719,1.46060031,662.33,661.88,3.3550517]
[1751934510921,1.46060031,662.32,661.88,3.3550517]
[1751934511120,1.46060031,662.31,661.88,3.3550517]
[1751934511317,2.52249528,662.43,661.88,3.3550517]
[1751934511622,2.52249528,662.42,661.89,1.913]
[1751934511817,2.52249528,662.41,661.89,1.913]
[1751934512021,2.52249528,662.4,661.89,1.913]
[1751934512221,2.52249528,662.39,661.89,1.913]
[1751934512519,2.52249528,662.38,661.89,5.2680517]
[1751934512822,1.46060031,662.37,661.89,1.913]
[1751934513022,1.69416331,662.54,661.89,1.913]
[1751934513023,1.46060031,662.36,661.89,1.913]
[1751934513318,1.46060031,662.35,661.89,1.913]
[1751934513516,1.46060031,662.34,661.89,1.913]
[1751934513716,1.46060031,662.33,661.89,1.913]
[1751934513921,1.46060031,662.32,661.89,1.913]
[1751934514124,1.46060031,662.31,661.89,1.913]
[1751934514322,1.46060031,662.3,661.89,1.913]
[1751934514518,1.06189497,662.42,661.89,1.913]
[1751934514718,2.52518526,662.41,661.89,1.913]
[1751934514919,2.52518526,662.4,661.89,1.913]
[1751934515223,2.52518526,662.39,661.89,1.913]
[1751934515418,1.46329029,662.38,661.89,1.913]
[1751934515618,1.46329029,662.37,661.89,1.913]
[1751934515818,1.46329029,662.36,661.89,1.913]
[1751934516018,1.46329029,662.35,661.89,1.913]
[1751934516218,1.46329029,662.34,661.89,1.913]
[1751934516421,1.46329029,662.33,661.89,1.913]
[1751934516621,1.46329029,662.32,661.89,1.913]
[1751934516824,1.46329029,662.31,661.89,1.913]
[1751934517024,1.46329029,662.3,661.89,1.913]
[1751934517221,1.46329029,662.29,661.89,1.913]
[1751934517425,1.06210313,662.42,661.89,1.913]
[1751934517625,2.52549742,662.41,661.89,1.913]
[1751934517824,2.52549742,662.4,661.89,1.913]
[1751934518020,2.52549742,662.39,661.89,1.913]
[1751934518226,1.46339429,662.38,661.89,1.913]
[1751934518521,1.46339429,662.37,661.89,1.913]
[1751934518719,1.69416331,662.55,661.89,1.913]
[1751934518720,1.46339429,662.36,661.89,1.913]
[1751934519024,1.46339429,662.35,661.89,1.913]
[1751934519221,1.46339429,662.34,661.89,1.913]
[1751934519424,1.46339429,662.33,661.89,1.913]
[1751934519623,1.46339429,662.32,661.89,1.913]
[1751934519821,1.46339429,662.31,661.89,1.913]
[1751934520120,1.46339429,662.3,661.89,1.913]
[1751934520321,1.46339429,662.29,661.89,1.913]
[1751934520519,1.46339429,662.28,661.89,1.913]
[1751934520720,1.06210313,662.4,661.89,1.913]
[1751934520922,2.52645661,662.39,661.89,1.913]
[1751934521224,1.46435348,662.38,661.89,1.913]
[1751934521420,1.46435348,662.37,661.89,1.913]
[1751934521722,1.46435348,662.36,661.89,1.913]
[1751934521921,1.46435348,662.35,661.89,1.913]
[1751934522125,1.46435348,662.34,661.89,1.913]
[1751934522322,1.46435348,662.33,661.89,1.913]
[1751934522526,1.46435348,662.32,661.89,1.913]
[1751934522722,1.46435348,662.31,661.89,1.913]
[1751934522926,1.46435348,662.3,661.89,1.913]
[1751934523222,1.46435348,662.29,661.89,1.913]
[1751934523423,1.46435348,662.28,661.89,1.913]
[1751934523625,1.0623535,662.41,661.89,1.913]
[1751934523821,2.52694414,662.4,661.89,1.913]
[1751934524026,2.52694414,662.39,661.89,1.913]
[1751934524325,2.52694697,662.38,661.89,1.913]
[1751934524525,1.46459064,662.37,661.89,1.913]
[1751934524723,1.46459064,662.36,661.89,1.913]
[1751934524927,1.46459064,662.35,661.89,1.913]
[1751934525128,1.46459064,662.34,661.89,1.913]